[Event "*** Titled Tuesday Blitz"]
[Site "Chess.com"]
[Date "2021.04.06"]
[Round "1"]
[White "GrigoriyM2001"]
[Black "MuhittinBuker"]
[Result "1-0"]
[WhiteElo "2529"]
[BlackElo "2198"]
[TimeControl "180+1"]
[EndTime "10:08:27 PDT"]
[Termination "GrigoriyM2001 won on time"]

1. d4 {[%clk 0:02:59.6]} 1... Nf6 {[%clk 0:02:59.1]} 2. c4 {[%clk 0:02:59.7]}
2... e6 {[%clk 0:02:59]} 3. g3 {[%clk 0:02:59.6]} 3... b6 {[%clk 0:02:59.3]} 4.
Bg2 {[%clk 0:02:58.8]} 4... c6 {[%clk 0:02:59.5]} 5. Nf3 {[%clk 0:02:58.7]} 5...
Ba6 {[%clk 0:02:57.5]} 6. Qc2 {[%clk 0:02:54.2]} 6... d5 {[%clk 0:02:55]} 7. O-O
{[%clk 0:02:49.2]} 7... Bxc4 {[%clk 0:02:51.1]} 8. Ne5 {[%clk 0:02:29]} 8... Ba6
{[%clk 0:02:33]} 9. Bg5 {[%clk 0:02:13.9]} 9... Bb7 {[%clk 0:02:26.4]} 10. Nc3
{[%clk 0:02:12.5]} 10... Be7 {[%clk 0:02:25.2]} 11. e4 {[%clk 0:02:01.2]} 11...
O-O {[%clk 0:02:20.2]} 12. exd5 {[%clk 0:01:58.9]} 12... cxd5 {[%clk 0:02:12.4]}
13. Nb5 {[%clk 0:01:47.6]} 13... Na6 {[%clk 0:02:09.6]} 14. Nc6 {[%clk
0:01:38.7]} 14... Bxc6 {[%clk 0:02:08.4]} 15. Qxc6 {[%clk 0:01:39.6]} 15... h6
{[%clk 0:02:00.4]} 16. Bf4 {[%clk 0:01:38.4]} 16... Qd7 {[%clk 0:01:55.3]} 17.
Qxd7 {[%clk 0:01:34.3]} 17... Nxd7 {[%clk 0:01:54.4]} 18. Rfc1 {[%clk
0:01:34.1]} 18... Rfc8 {[%clk 0:01:49.8]} 19. a3 {[%clk 0:01:33.5]} 19... g5
{[%clk 0:01:39]} 20. Bd6 {[%clk 0:01:30.9]} 20... Bxd6 {[%clk 0:01:26.3]} 21.
Nxd6 {[%clk 0:01:29.9]} 21... Rxc1+ {[%clk 0:01:25.9]} 22. Rxc1 {[%clk
0:01:30.8]} 22... Kf8 {[%clk 0:01:25.9]} 23. Bf1 {[%clk 0:01:23.8]} 23... Nab8
{[%clk 0:01:13.1]} 24. Rc8+ {[%clk 0:00:39.6]} 24... Ke7 {[%clk 0:01:11.9]} 25.
Nb5 {[%clk 0:00:39.9]} 25... a6 {[%clk 0:01:05.6]} 26. Nc7 {[%clk 0:00:40]}
26... Ra7 {[%clk 0:01:04.9]} 27. f4 {[%clk 0:00:31]} 27... gxf4 {[%clk
0:01:01.3]} 28. gxf4 {[%clk 0:00:31.9]} 28... Nc6 {[%clk 0:00:54]} 29. Nxd5+
{[%clk 0:00:30.9]} 29... exd5 {[%clk 0:00:53.2]} 30. Rxc6 {[%clk 0:00:31.8]}
30... Nf6 {[%clk 0:00:49.5]} 31. Bg2 {[%clk 0:00:28]} 31... b5 {[%clk
0:00:48.8]} 32. Kf2 {[%clk 0:00:25.8]} 32... a5 {[%clk 0:00:46]} 33. Bf3 {[%clk
0:00:24.2]} 33... b4 {[%clk 0:00:42.5]} 34. a4 {[%clk 0:00:24.4]} 34... Ra8
{[%clk 0:00:33.7]} 35. f5 {[%clk 0:00:19]} 35... Ra7 {[%clk 0:00:31.3]} 36. Ke3
{[%clk 0:00:18.1]} 36... Rb7 {[%clk 0:00:20.3]} 37. Kf4 {[%clk 0:00:18.1]} 37...
b3 {[%clk 0:00:19.2]} 38. Ke5 {[%clk 0:00:18.3]} 38... Nd7+ {[%clk 0:00:18.5]}
39. Kxd5 {[%clk 0:00:18.5]} 39... Rb4 {[%clk 0:00:18.2]} 40. Rc7 {[%clk
0:00:12.6]} 40... Kd8 {[%clk 0:00:16.3]} 41. Ra7 {[%clk 0:00:11.7]} 41... Rxa4
{[%clk 0:00:16.1]} 42. Be2 {[%clk 0:00:08.4]} 42... Ra1 {[%clk 0:00:14.9]} 43.
Bb5 {[%clk 0:00:07.5]} 43... Nf6+ {[%clk 0:00:11.5]} 44. Kd6 {[%clk 0:00:07.2]}
44... Ne4+ {[%clk 0:00:11.4]} 45. Ke5 {[%clk 0:00:07.4]} 45... Ng5 {[%clk
0:00:08.8]} 46. Bc6 {[%clk 0:00:05.5]} 46... Re1+ {[%clk 0:00:07.6]} 47. Kf6
{[%clk 0:00:05.1]} 47... Ne4+ {[%clk 0:00:06.8]} 48. Kxf7 {[%clk 0:00:04.9]}
48... Nd6+ {[%clk 0:00:05.6]} 49. Kg6 {[%clk 0:00:04.7]} 49... Nc4 {[%clk
0:00:04.8]} 50. f6 {[%clk 0:00:04]} 50... Rg1+ {[%clk 0:00:03.8]} 51. Kxh6
{[%clk 0:00:04.3]} 51... Nxb2 {[%clk 0:00:03.8]} 52. f7 {[%clk 0:00:04.2]} 52...
Rf1 {[%clk 0:00:03.7]} 53. Kg7 {[%clk 0:00:04.2]} 53... Nc4 {[%clk 0:00:03.6]}
54. f8=Q+ {[%clk 0:00:03.6]} 54... Rxf8 {[%clk 0:00:02.5]} 55. Kxf8 {[%clk
0:00:04.5]} 55... b2 {[%clk 0:00:01.8]} 56. Rb7 {[%clk 0:00:04.8]} 56... Kc8
{[%clk 0:00:01.1]} 57. Rb3 {[%clk 0:00:04.3]} 57... a4 {[%clk 0:00:01]} 58. Bxa4
{[%clk 0:00:03.1]} 1-0

[Event "*** Titled Tuesday Blitz"]
[Site "Chess.com"]
[Date "2021.04.06"]
[Round "1"]
[White "politeplayer"]
[Black "maximnovik"]
[Result "0-1"]
[WhiteElo "2238"]
[BlackElo "2559"]
[TimeControl "180+1"]
[EndTime "10:08:31 PDT"]
[Termination "maximnovik won on time"]

1. e4 {[%clk 0:02:42.1]} 1... c6 {[%clk 0:02:59.2]} 2. d4 {[%clk 0:02:39.8]}
2... d5 {[%clk 0:02:59.4]} 3. exd5 {[%clk 0:02:39.7]} 3... cxd5 {[%clk
0:02:58.9]} 4. c4 {[%clk 0:02:40.2]} 4... Nf6 {[%clk 0:02:58.1]} 5. Nc3 {[%clk
0:02:40.4]} 5... g6 {[%clk 0:02:58.6]} 6. Nf3 {[%clk 0:02:40]} 6... Bg7 {[%clk
0:02:58.3]} 7. Be2 {[%clk 0:02:38.7]} 7... O-O {[%clk 0:02:57.5]} 8. O-O {[%clk
0:02:39.2]} 8... Nc6 {[%clk 0:02:57.9]} 9. Be3 {[%clk 0:02:37.6]} 9... Bf5
{[%clk 0:02:55.8]} 10. Rc1 {[%clk 0:02:36.6]} 10... dxc4 {[%clk 0:02:49.9]} 11.
Bxc4 {[%clk 0:02:35.7]} 11... Rc8 {[%clk 0:02:50.2]} 12. Bb3 {[%clk 0:02:27.9]}
12... Nb4 {[%clk 0:02:38.6]} 13. Ne5 {[%clk 0:02:07.9]} 13... Nfd5 {[%clk
0:02:24.6]} 14. a3 {[%clk 0:01:59.4]} 14... Nxc3 {[%clk 0:02:22.6]} 15. bxc3
{[%clk 0:01:59.1]} 15... Nd5 {[%clk 0:02:17.2]} 16. Qf3 {[%clk 0:00:56.5]} 16...
Be6 {[%clk 0:00:42.7]} 17. Bd2 {[%clk 0:00:49.5]} 17... Bxe5 {[%clk 0:00:39.8]}
18. dxe5 {[%clk 0:00:49.4]} 18... Nc7 {[%clk 0:00:39.1]} 19. Bxe6 {[%clk
0:00:35.5]} 19... Nxe6 {[%clk 0:00:39]} 20. Bh6 {[%clk 0:00:31.3]} 20... Re8
{[%clk 0:00:39.4]} 21. Rfd1 {[%clk 0:00:30.7]} 21... Qc7 {[%clk 0:00:38.7]} 22.
Qe3 {[%clk 0:00:25]} 22... b6 {[%clk 0:00:37.7]} 23. h4 {[%clk 0:00:23.8]} 23...
Red8 {[%clk 0:00:33.7]} 24. Re1 {[%clk 0:00:23.1]} 24... Qc4 {[%clk 0:00:32.7]}
25. h5 {[%clk 0:00:20.1]} 25... Rd3 {[%clk 0:00:33.1]} 26. Qe2 {[%clk
0:00:16.9]} 26... Rcd8 {[%clk 0:00:33.6]} 27. hxg6 {[%clk 0:00:16.7]} 27... hxg6
{[%clk 0:00:33.2]} 28. Rcd1 {[%clk 0:00:15.9]} 28... Rxd1 {[%clk 0:00:30.1]} 29.
Qxc4 {[%clk 0:00:14.8]} 29... Rxe1+ {[%clk 0:00:29.8]} 30. Kh2 {[%clk
0:00:15.2]} 30... Rxe5 {[%clk 0:00:28.3]} 31. Be3 {[%clk 0:00:13.9]} 31... Rh5+
{[%clk 0:00:27.9]} 32. Kg3 {[%clk 0:00:13.5]} 32... Ng7 {[%clk 0:00:21.8]} 33.
Kf3 {[%clk 0:00:11.2]} 33... Ne6 {[%clk 0:00:20.4]} 34. Qa4 {[%clk 0:00:08.8]}
34... Ra5 {[%clk 0:00:18.8]} 35. Qb4 {[%clk 0:00:07.3]} 35... Rd7 {[%clk
0:00:17]} 36. g3 {[%clk 0:00:06.4]} 36... Rad5 {[%clk 0:00:16.9]} 37. Kg2 {[%clk
0:00:06.1]} 37... f6 {[%clk 0:00:17]} 38. Qb3 {[%clk 0:00:05.1]} 38... Kf7
{[%clk 0:00:16.5]} 39. a4 {[%clk 0:00:05.3]} 39... g5 {[%clk 0:00:15.3]} 40. a5
{[%clk 0:00:05.5]} 40... Rxa5 {[%clk 0:00:14.3]} 41. f4 {[%clk 0:00:05.3]} 41...
g4 {[%clk 0:00:13.4]} 42. Qc4 {[%clk 0:00:04]} 42... Rad5 {[%clk 0:00:12.2]} 43.
Kf2 {[%clk 0:00:03.7]} 43... f5 {[%clk 0:00:11.7]} 44. Ke2 {[%clk 0:00:03.7]}
44... a5 {[%clk 0:00:11.8]} 45. Qb3 {[%clk 0:00:03.8]} 45... b5 {[%clk
0:00:11.6]} 46. Qb1 {[%clk 0:00:04.2]} 46... a4 {[%clk 0:00:11.1]} 47. Bd4
{[%clk 0:00:04.5]} 47... Nxd4+ {[%clk 0:00:10.5]} 48. cxd4 {[%clk 0:00:04.8]}
48... e6 {[%clk 0:00:10.9]} 49. Qb2 {[%clk 0:00:04.4]} 49... Kg6 {[%clk
0:00:10.7]} 50. Ke3 {[%clk 0:00:04]} 50... Ra7 {[%clk 0:00:09.9]} 51. Qb4 {[%clk
0:00:03.6]} 51... Kf7 {[%clk 0:00:10]} 52. Qb2 {[%clk 0:00:02.7]} 52... a3
{[%clk 0:00:10.1]} 53. Qa1 {[%clk 0:00:02.5]} 53... b4 {[%clk 0:00:10.5]} 54.
Qh1 {[%clk 0:00:02.9]} 54... Kg7 {[%clk 0:00:09.7]} 55. Qh5 {[%clk 0:00:03.3]}
55... a2 {[%clk 0:00:08.8]} 56. Qg5+ {[%clk 0:00:03.8]} 56... Kf7 {[%clk
0:00:09.2]} 57. Qh5+ {[%clk 0:00:03.7]} 57... Kg8 {[%clk 0:00:07.3]} 58. Qg6+
{[%clk 0:00:03.3]} 58... Kf8 {[%clk 0:00:06.6]} 59. Qf6+ {[%clk 0:00:03.6]}
59... Rf7 {[%clk 0:00:06.5]} 60. Qxe6 {[%clk 0:00:03.9]} 60... Re7 {[%clk
0:00:06.3]} 0-1

[Event "*** Titled Tuesday Blitz"]
[Site "Chess.com"]
[Date "2021.04.06"]
[Round "1"]
[White "madamDD"]
[Black "szabadaba"]
[Result "1/2-1/2"]
[WhiteElo "2374"]
[BlackElo "2668"]
[TimeControl "180+1"]
[EndTime "10:08:35 PDT"]
[Termination "Game drawn - insufficient material"]

1. e4 {[%clk 0:03:00.3]} 1... c6 {[%clk 0:02:59.4]} 2. d4 {[%clk 0:02:58.5]}
2... d5 {[%clk 0:02:59.2]} 3. e5 {[%clk 0:02:58.7]} 3... Bf5 {[%clk 0:02:58.5]}
4. h4 {[%clk 0:02:57.5]} 4... h6 {[%clk 0:02:57.8]} 5. g4 {[%clk 0:02:49.6]}
5... Bd7 {[%clk 0:02:57.4]} 6. Bd3 {[%clk 0:02:48.6]} 6... h5 {[%clk 0:02:54.8]}
7. g5 {[%clk 0:02:45.8]} 7... g6 {[%clk 0:02:53.5]} 8. Ne2 {[%clk 0:02:33.1]}
8... Bg4 {[%clk 0:02:51.9]} 9. Nd2 {[%clk 0:02:31.3]} 9... e6 {[%clk 0:02:50.1]}
10. f3 {[%clk 0:02:31.1]} 10... Bf5 {[%clk 0:02:50.1]} 11. Bxf5 {[%clk
0:02:28.5]} 11... gxf5 {[%clk 0:02:49.6]} 12. Nf4 {[%clk 0:02:23]} 12... Ne7
{[%clk 0:02:48.9]} 13. Nf1 {[%clk 0:02:19.5]} 13... Ng6 {[%clk 0:02:47.5]} 14.
Be3 {[%clk 0:02:16.3]} 14... Nd7 {[%clk 0:02:44]} 15. Ng3 {[%clk 0:02:09.1]}
15... Nxf4 {[%clk 0:02:43]} 16. Bxf4 {[%clk 0:02:09.4]} 16... c5 {[%clk
0:02:37.9]} 17. Ne2 {[%clk 0:02:03.6]} 17... cxd4 {[%clk 0:02:36]} 18. Nxd4
{[%clk 0:02:03.3]} 18... Bc5 {[%clk 0:02:26.8]} 19. Qd2 {[%clk 0:01:56.7]} 19...
Nf8 {[%clk 0:02:18.9]} 20. O-O-O {[%clk 0:01:53]} 20... Ng6 {[%clk 0:02:17.2]}
21. Bg3 {[%clk 0:01:48.4]} 21... Qb6 {[%clk 0:02:15.4]} 22. Kb1 {[%clk
0:01:40.4]} 22... Bxd4 {[%clk 0:02:08.6]} 23. Qxd4 {[%clk 0:01:40.1]} 23... Qxd4
{[%clk 0:02:08.6]} 24. Rxd4 {[%clk 0:01:41]} 24... Rc8 {[%clk 0:02:06.7]} 25.
Rb4 {[%clk 0:01:36.5]} 25... Rc7 {[%clk 0:02:05.2]} 26. c4 {[%clk 0:01:26.3]}
26... dxc4 {[%clk 0:02:01.1]} 27. Rc1 {[%clk 0:01:25.6]} 27... Kd7 {[%clk
0:01:58.6]} 28. Rbxc4 {[%clk 0:01:25]} 28... Rhc8 {[%clk 0:01:58.1]} 29. Rd4+
{[%clk 0:01:15.8]} 29... Ke7 {[%clk 0:01:57.3]} 30. Rcd1 {[%clk 0:01:15.3]}
30... b6 {[%clk 0:01:53.5]} 31. f4 {[%clk 0:01:14.6]} 31... Rb7 {[%clk
0:01:50.5]} 32. Be1 {[%clk 0:01:08.6]} 32... a5 {[%clk 0:01:49]} 33. b4 {[%clk
0:01:07.5]} 33... axb4 {[%clk 0:01:40.5]} 34. Bxb4+ {[%clk 0:01:07.1]} 34... Ke8
{[%clk 0:01:40.2]} 35. Be1 {[%clk 0:00:54.5]} 35... Ne7 {[%clk 0:01:35.6]} 36.
Rd6 {[%clk 0:00:47.9]} 36... Nd5 {[%clk 0:01:33.2]} 37. g6 {[%clk 0:00:44.7]}
37... Ke7 {[%clk 0:01:20.1]} 38. gxf7 {[%clk 0:00:16.8]} 38... Kxf7 {[%clk
0:01:16.8]} 39. R1xd5 {[%clk 0:00:15.7]} 39... exd5 {[%clk 0:01:16.1]} 40. Rf6+
{[%clk 0:00:15.9]} 40... Kg7 {[%clk 0:01:14.4]} 41. Rxf5 {[%clk 0:00:16.2]}
41... Rf7 {[%clk 0:01:10]} 42. Rg5+ {[%clk 0:00:15.5]} 42... Kf8 {[%clk
0:01:09.4]} 43. f5 {[%clk 0:00:15.6]} 43... Rfc7 {[%clk 0:01:00.7]} 44. Bb4+
{[%clk 0:00:13.2]} 44... Ke8 {[%clk 0:00:58.8]} 45. e6 {[%clk 0:00:10]} 45...
Rc1+ {[%clk 0:00:57.4]} 46. Kb2 {[%clk 0:00:10.3]} 46... R8c2+ {[%clk
0:00:54.5]} 47. Kb3 {[%clk 0:00:10.5]} 47... Rb1+ {[%clk 0:00:54.2]} 48. Kxc2
{[%clk 0:00:10.4]} 48... Rxb4 {[%clk 0:00:53.9]} 49. f6 {[%clk 0:00:10.9]} 49...
Kf8 {[%clk 0:00:53.8]} 50. e7+ {[%clk 0:00:10.6]} 50... Kf7 {[%clk 0:00:53.6]}
51. Re5 {[%clk 0:00:09.8]} 51... Rc4+ {[%clk 0:00:52.4]} 52. Kb3 {[%clk
0:00:07.9]} 52... Rc8 {[%clk 0:00:52.3]} 53. Kb4 {[%clk 0:00:05.6]} 53... Re8
{[%clk 0:00:51.9]} 54. Kc3 {[%clk 0:00:05]} 54... Kxf6 {[%clk 0:00:51.8]} 55.
Rxd5 {[%clk 0:00:05.3]} 55... Rxe7 {[%clk 0:00:49.3]} 56. Rxh5 {[%clk
0:00:05.5]} 56... Re3+ {[%clk 0:00:49]} 57. Kb4 {[%clk 0:00:05.4]} 57... Ke7
{[%clk 0:00:46.3]} 58. a4 {[%clk 0:00:03]} 58... Kd7 {[%clk 0:00:45.6]} 59. Kb5
{[%clk 0:00:01.7]} 59... Kc7 {[%clk 0:00:45.4]} 60. Ka6 {[%clk 0:00:02.1]} 60...
Re4 {[%clk 0:00:42.3]} 61. Rh7+ {[%clk 0:00:02.7]} 61... Kc8 {[%clk 0:00:42.4]}
62. h5 {[%clk 0:00:02.9]} 62... Rxa4+ {[%clk 0:00:42.4]} 63. Kxb6 {[%clk
0:00:03.6]} 63... Kd8 {[%clk 0:00:42.3]} 64. h6 {[%clk 0:00:03.8]} 64... Rh4
{[%clk 0:00:38.6]} 65. Kc6 {[%clk 0:00:04]} 65... Ke8 {[%clk 0:00:38.4]} 66. Kd6
{[%clk 0:00:04.7]} 66... Kf8 {[%clk 0:00:38.5]} 67. Ke6 {[%clk 0:00:05.3]} 67...
Kg8 {[%clk 0:00:38.9]} 68. Rg7+ {[%clk 0:00:05.9]} 68... Kh8 {[%clk 0:00:38.9]}
69. Rg6 {[%clk 0:00:06.2]} 69... Kh7 {[%clk 0:00:39.4]} 70. Rf6 {[%clk
0:00:06.6]} 70... Rh1 {[%clk 0:00:39.1]} 71. Kf7 {[%clk 0:00:06.8]} 71... Rg1
{[%clk 0:00:38.5]} 72. Ke6 {[%clk 0:00:06.8]} 72... Re1+ {[%clk 0:00:38.5]} 73.
Kf7 {[%clk 0:00:07.1]} 73... Ra1 {[%clk 0:00:38.3]} 74. Ke6 {[%clk 0:00:07]}
74... Ra6+ {[%clk 0:00:38.1]} 75. Kf5 {[%clk 0:00:07.2]} 75... Ra5+ {[%clk
0:00:37.9]} 76. Ke6 {[%clk 0:00:07.4]} 76... Ra7 {[%clk 0:00:37.2]} 77. Kf5
{[%clk 0:00:07.5]} 77... Ra5+ {[%clk 0:00:36.3]} 78. Ke6 {[%clk 0:00:07.8]}
78... Ra6+ {[%clk 0:00:36.5]} 79. Kf5 {[%clk 0:00:07.5]} 79... Rxf6+ {[%clk
0:00:36.5]} 80. Kxf6 {[%clk 0:00:07.9]} 80... Kxh6 {[%clk 0:00:37.4]} 1/2-1/2

[Event "*** Titled Tuesday Blitz"]
[Site "Chess.com"]
[Date "2021.04.06"]
[Round "1"]
[White "Tactictic"]
[Black "AlexTriapishko"]
[Result "0-1"]
[WhiteElo "2433"]
[BlackElo "2828"]
[TimeControl "180+1"]
[EndTime "10:08:37 PDT"]
[Termination "AlexTriapishko won by checkmate"]

1. e4 {[%clk 0:02:59.3]} 1... c6 {[%clk 0:02:22.6]} 2. d4 {[%clk 0:02:46.5]}
2... d5 {[%clk 0:02:23.5]} 3. e5 {[%clk 0:02:46.9]} 3... Bf5 {[%clk 0:02:23.3]}
4. h4 {[%clk 0:02:46.9]} 4... h5 {[%clk 0:02:22.7]} 5. Bd3 {[%clk 0:02:46]} 5...
Bxd3 {[%clk 0:02:22.8]} 6. Qxd3 {[%clk 0:02:46.9]} 6... Qa5+ {[%clk 0:02:23.1]}
7. Nd2 {[%clk 0:02:44.8]} 7... e6 {[%clk 0:02:23.1]} 8. Nf3 {[%clk 0:02:40]}
8... Nh6 {[%clk 0:02:00.8]} 9. O-O {[%clk 0:02:32.1]} 9... Nf5 {[%clk
0:01:59.2]} 10. c4 {[%clk 0:02:30.3]} 10... Be7 {[%clk 0:01:47.4]} 11. g3 {[%clk
0:02:25.7]} 11... Na6 {[%clk 0:01:35.5]} 12. c5 {[%clk 0:02:01.6]} 12... b6
{[%clk 0:01:14.6]} 13. b4 {[%clk 0:00:56.7]} 13... Nxb4 {[%clk 0:01:11.7]} 14.
Qc3 {[%clk 0:00:57]} 14... Qa4 {[%clk 0:01:03]} 15. Rb1 {[%clk 0:00:56.1]} 15...
Na6 {[%clk 0:00:59]} 16. cxb6 {[%clk 0:00:55.1]} 16... O-O {[%clk 0:00:48.8]}
17. bxa7 {[%clk 0:00:48.7]} 17... Rxa7 {[%clk 0:00:45.4]} 18. Nb3 {[%clk
0:00:43.9]} 18... Nc7 {[%clk 0:00:29.4]} 19. Bg5 {[%clk 0:00:42.4]} 19... Bxg5
{[%clk 0:00:16.9]} 20. Nxg5 {[%clk 0:00:43.3]} 20... Nb5 {[%clk 0:00:16.8]} 21.
Qf3 {[%clk 0:00:36.6]} 21... g6 {[%clk 0:00:16.6]} 22. Rfd1 {[%clk 0:00:36.3]}
22... Nbxd4 {[%clk 0:00:14.4]} 23. Nxd4 {[%clk 0:00:37.2]} 23... Nxd4 {[%clk
0:00:15]} 24. Qd3 {[%clk 0:00:36.8]} 24... c5 {[%clk 0:00:11.4]} 25. Rbc1 {[%clk
0:00:34.3]} 25... Qa5 {[%clk 0:00:05.1]} 26. g4 {[%clk 0:00:24.4]} 26... hxg4
{[%clk 0:00:04.2]} 27. h5 {[%clk 0:00:24.8]} 27... Kg7 {[%clk 0:00:04.7]} 28.
hxg6 {[%clk 0:00:24.3]} 28... fxg6 {[%clk 0:00:05.6]} 29. Qe3 {[%clk 0:00:20.6]}
29... Nf3+ {[%clk 0:00:03.2]} 30. Nxf3 {[%clk 0:00:20.3]} 30... Rxf3 {[%clk
0:00:04.1]} 31. Qxc5 {[%clk 0:00:20.6]} 31... Qxc5 {[%clk 0:00:04]} 32. Rxc5
{[%clk 0:00:21.5]} 32... Raf7 {[%clk 0:00:04.1]} 33. Rd2 {[%clk 0:00:21.5]}
33... g3 {[%clk 0:00:04.6]} 34. fxg3 {[%clk 0:00:22.4]} 34... Rxg3+ {[%clk
0:00:05.5]} 35. Rg2 {[%clk 0:00:21.8]} 35... Re3 {[%clk 0:00:05.7]} 36. Rg5
{[%clk 0:00:20.4]} 36... Re1+ {[%clk 0:00:05.5]} 37. Kg2 {[%clk 0:00:20.3]}
37... Re2+ {[%clk 0:00:06.4]} 38. Kg1 {[%clk 0:00:20.5]} 38... Rf5 {[%clk
0:00:06]} 39. Rxf5 {[%clk 0:00:18.4]} 39... gxf5 {[%clk 0:00:06.9]} 40. a4
{[%clk 0:00:18.4]} 40... Rxe5 {[%clk 0:00:06.5]} 41. Kf2 {[%clk 0:00:18.9]}
41... Re4 {[%clk 0:00:06.4]} 42. Rc7+ {[%clk 0:00:19.1]} 42... Kf6 {[%clk
0:00:06]} 43. a5 {[%clk 0:00:19.6]} 43... Rf4+ {[%clk 0:00:06.5]} 44. Ke3 {[%clk
0:00:19.5]} 44... Ra4 {[%clk 0:00:07.4]} 45. Ra7 {[%clk 0:00:19.2]} 45... f4+
{[%clk 0:00:08]} 46. Kf3 {[%clk 0:00:19.2]} 46... Ke5 {[%clk 0:00:08.9]} 47. a6
{[%clk 0:00:18.9]} 47... Ra3+ {[%clk 0:00:09.5]} 48. Ke2 {[%clk 0:00:19.1]}
48... Ke4 {[%clk 0:00:10.4]} 49. Ra8 {[%clk 0:00:14.4]} 49... Ra2+ {[%clk
0:00:10.7]} 50. Kd1 {[%clk 0:00:13.8]} 50... e5 {[%clk 0:00:11.6]} 51. a7 {[%clk
0:00:14]} 51... f3 {[%clk 0:00:12.1]} 52. Ke1 {[%clk 0:00:11.8]} 52... d4 {[%clk
0:00:12.6]} 53. Kd1 {[%clk 0:00:11.3]} 53... Kd3 {[%clk 0:00:12.4]} 54. Kc1
{[%clk 0:00:10.2]} 54... f2 {[%clk 0:00:12.4]} 55. Rf8 {[%clk 0:00:10.2]} 55...
Rxa7 {[%clk 0:00:11.6]} 56. Rxf2 {[%clk 0:00:11.1]} 56... Ra1+ {[%clk
0:00:11.5]} 57. Kb2 {[%clk 0:00:11.2]} 57... Re1 {[%clk 0:00:12.4]} 58. Rf3+
{[%clk 0:00:09.6]} 58... Ke4 {[%clk 0:00:12.4]} 59. Rf8 {[%clk 0:00:09.5]} 59...
d3 {[%clk 0:00:12.8]} 60. Kc3 {[%clk 0:00:09.6]} 60... Re2 {[%clk 0:00:13.2]}
61. Rd8 {[%clk 0:00:08.8]} 61... Rc2+ {[%clk 0:00:13.7]} 62. Kb3 {[%clk
0:00:09.3]} 62... Rc7 {[%clk 0:00:14.4]} 63. Kb2 {[%clk 0:00:09.5]} 63... Ke3
{[%clk 0:00:14.8]} 64. Kb3 {[%clk 0:00:09.7]} 64... e4 {[%clk 0:00:15.2]} 65.
Rd5 {[%clk 0:00:09.3]} 65... Kd2 {[%clk 0:00:15.2]} 66. Kb2 {[%clk 0:00:08.5]}
66... e3 {[%clk 0:00:15.5]} 67. Re5 {[%clk 0:00:08.1]} 67... Rb7+ {[%clk
0:00:15.8]} 68. Ka3 {[%clk 0:00:08]} 68... e2 {[%clk 0:00:16.4]} 69. Rc5 {[%clk
0:00:07.6]} 69... e1=Q {[%clk 0:00:16.4]} 70. Rc4 {[%clk 0:00:02.6]} 70... Qa1#
{[%clk 0:00:16]} 0-1

[Event "*** Titled Tuesday Blitz"]
[Site "Chess.com"]
[Date "2021.04.06"]
[Round "1"]
[White "djano"]
[Black "ViditYT"]
[Result "1/2-1/2"]
[WhiteElo "2477"]
[BlackElo "2934"]
[TimeControl "180+1"]
[EndTime "10:08:46 PDT"]
[Termination "Game drawn - insufficient material"]

1. e4 {[%clk 0:03:00.1]} 1... c6 {[%clk 0:02:57.4]} 2. d4 {[%clk 0:02:59.7]}
2... d5 {[%clk 0:02:56.1]} 3. exd5 {[%clk 0:03:00.6]} 3... cxd5 {[%clk
0:02:56.2]} 4. Bd3 {[%clk 0:03:00.3]} 4... Nc6 {[%clk 0:02:56.3]} 5. c3 {[%clk
0:03:00.3]} 5... Nf6 {[%clk 0:02:52.6]} 6. Bf4 {[%clk 0:02:58.9]} 6... Bg4
{[%clk 0:02:45.7]} 7. Qb3 {[%clk 0:02:57.6]} 7... Na5 {[%clk 0:02:39.3]} 8. Qc2
{[%clk 0:02:52.1]} 8... a6 {[%clk 0:02:30]} 9. Nd2 {[%clk 0:02:50.6]} 9... e6
{[%clk 0:02:29.2]} 10. Ngf3 {[%clk 0:02:42.2]} 10... Nc6 {[%clk 0:02:26.3]} 11.
h3 {[%clk 0:02:34.9]} 11... Bh5 {[%clk 0:02:26.2]} 12. O-O {[%clk 0:02:34.1]}
12... Rc8 {[%clk 0:02:23.3]} 13. a3 {[%clk 0:02:15.5]} 13... Be7 {[%clk
0:02:21.3]} 14. Rae1 {[%clk 0:02:14.5]} 14... O-O {[%clk 0:02:16.8]} 15. Bh2
{[%clk 0:01:54.9]} 15... Bd6 {[%clk 0:02:09.8]} 16. Bxd6 {[%clk 0:01:48.9]}
16... Qxd6 {[%clk 0:02:10.7]} 17. Qb1 {[%clk 0:01:44.7]} 17... Bxf3 {[%clk
0:01:52.7]} 18. Nxf3 {[%clk 0:01:45.2]} 18... g6 {[%clk 0:01:49.7]} 19. Ne5
{[%clk 0:01:44]} 19... Kg7 {[%clk 0:01:50.2]} 20. f4 {[%clk 0:01:42.4]} 20... b5
{[%clk 0:01:40.8]} 21. Qd1 {[%clk 0:01:37.5]} 21... Na5 {[%clk 0:01:34.7]} 22.
Qf3 {[%clk 0:01:28.7]} 22... Nc4 {[%clk 0:01:34.4]} 23. Re2 {[%clk 0:01:28.9]}
23... a5 {[%clk 0:01:31.7]} 24. g4 {[%clk 0:01:14]} 24... b4 {[%clk 0:01:18.7]}
25. axb4 {[%clk 0:01:14.9]} 25... axb4 {[%clk 0:01:17]} 26. f5 {[%clk
0:01:08.6]} 26... exf5 {[%clk 0:01:15.8]} 27. gxf5 {[%clk 0:01:07.2]} 27... bxc3
{[%clk 0:01:13.3]} 28. bxc3 {[%clk 0:01:03.3]} 28... Qb6 {[%clk 0:00:37.2]} 29.
Kh1 {[%clk 0:00:53]} 29... Nd6 {[%clk 0:00:33]} 30. fxg6 {[%clk 0:00:49.3]}
30... fxg6 {[%clk 0:00:33]} 31. Nd7 {[%clk 0:00:35.5]} 31... Qd8 {[%clk
0:00:03.3]} 32. Nxf8 {[%clk 0:00:34.1]} 32... Qxf8 {[%clk 0:00:04.2]} 33. Re6
{[%clk 0:00:27.4]} 33... Nfe4 {[%clk 0:00:04.3]} 34. Bxe4 {[%clk 0:00:24.6]}
34... Nxe4 {[%clk 0:00:03.6]} 35. Qxf8+ {[%clk 0:00:24.6]} 35... Rxf8 {[%clk
0:00:04.5]} 36. Re7+ {[%clk 0:00:24.2]} 36... Kg8 {[%clk 0:00:04.4]} 37. Rxf8+
{[%clk 0:00:20.6]} 37... Kxf8 {[%clk 0:00:05.3]} 38. Rxh7 {[%clk 0:00:16]} 38...
Nxc3 {[%clk 0:00:05.4]} 39. Kg2 {[%clk 0:00:12.4]} 39... Ne2 {[%clk 0:00:04.4]}
40. Rd7 {[%clk 0:00:11.1]} 40... Nxd4 {[%clk 0:00:04.3]} 41. Rxd5 {[%clk
0:00:11]} 41... Nf5 {[%clk 0:00:03.5]} 42. Ra5 {[%clk 0:00:10.6]} 42... Kg7
{[%clk 0:00:03.9]} 43. Ra7+ {[%clk 0:00:10]} 43... Kh6 {[%clk 0:00:04.4]} 44.
Ra6 {[%clk 0:00:10.9]} 44... Kg5 {[%clk 0:00:04.6]} 45. Ra5 {[%clk 0:00:11.4]}
45... Kf6 {[%clk 0:00:04.9]} 46. Ra4 {[%clk 0:00:11]} 46... Kg5 {[%clk
0:00:05.3]} 47. Rg4+ {[%clk 0:00:10.2]} 47... Kh5 {[%clk 0:00:05.6]} 48. Ra4
{[%clk 0:00:11]} 48... Nh4+ {[%clk 0:00:04.7]} 49. Kg3 {[%clk 0:00:10.6]} 49...
Nf5+ {[%clk 0:00:05.6]} 50. Kf4 {[%clk 0:00:10.9]} 50... Kh4 {[%clk 0:00:03.9]}
51. Ra6 {[%clk 0:00:11]} 51... Kh5 {[%clk 0:00:03]} 52. Ra8 {[%clk 0:00:09.8]}
52... Kh6 {[%clk 0:00:03.4]} 53. Kg4 {[%clk 0:00:07.7]} 53... Ne3+ {[%clk
0:00:03.3]} 54. Kf3 {[%clk 0:00:07.6]} 54... Nf5 {[%clk 0:00:04.2]} 55. Kf4
{[%clk 0:00:06.9]} 55... Ne7 {[%clk 0:00:02.3]} 56. Ra7 {[%clk 0:00:05.6]} 56...
Nf5 {[%clk 0:00:02.5]} 57. Kg4 {[%clk 0:00:05]} 57... Ne3+ {[%clk 0:00:02.7]}
58. Kf3 {[%clk 0:00:04.9]} 58... Nf5 {[%clk 0:00:03.6]} 59. Kf4 {[%clk
0:00:04.5]} 59... Ng7 {[%clk 0:00:03.8]} 60. h4 {[%clk 0:00:04.4]} 60... Nf5
{[%clk 0:00:01.8]} 61. Kg4 {[%clk 0:00:04.8]} 61... Ne3+ {[%clk 0:00:01.8]} 62.
Kf3 {[%clk 0:00:04.4]} 62... Nf5 {[%clk 0:00:02.5]} 63. Ra8 {[%clk 0:00:05.3]}
63... Nxh4+ {[%clk 0:00:02.6]} 64. Kg4 {[%clk 0:00:05.8]} 64... Nf5 {[%clk
0:00:03.5]} 65. Ra6 {[%clk 0:00:05.8]} 65... Kg7 {[%clk 0:00:03.9]} 66. Rxg6+
{[%clk 0:00:06.3]} 66... Kxg6 {[%clk 0:00:04]} 1/2-1/2